bitfinex/quotes_BTCUSD_20250525
["timestamp","ask_amount","ask_price","bid_price","bid_amount"]
[1748146715031,0.18777246,107820.0,107810.0,2.45986022]
[1748146715416,0.19177246,107820.0,107810.0,2.60890022]
[1748146715616,0.19477246,107820.0,107810.0,2.60990022]
[1748146716355,0.21807246,107820.0,107810.0,2.60990022]
[1748146716565,0.21807246,107820.0,107810.0,2.26954022]
[1748146717399,0.14414556,107820.0,107810.0,2.26954022]
[1748146718701,0.0546,107820.0,107810.0,2.26954022]
[1748146720621,0.0506,107820.0,107810.0,2.26854022]
[1748146720850,0.0496,107820.0,107810.0,2.26750022]
[1748146721155,0.0486,107820.0,107810.0,2.26750022]
[1748146721365,0.0506,107820.0,107810.0,2.26750022]
[1748146721575,0.0506,107820.0,107810.0,2.60358166]
[1748146721788,0.0506,107820.0,107810.0,1.93141878]
[1748146722001,0.0506,107820.0,107810.0,2.0383413]
[1748146723263,0.0506,107820.0,107810.0,2.07503742]
[1748146729667,0.0506,107820.0,107810.0,2.40803742]
[1748146732289,0.0506,107820.0,107810.0,2.10355742]
[1748146732497,0.14014556,107820.0,107810.0,0.67413612]
[1748146733093,0.14014556,107820.0,107810.0,0.36969612]
[1748146733247,0.14014556,107820.0,107810.0,0.63744]
[1748146737024,0.14014556,107820.0,107810.0,0.333]
[1748146737227,0.14014556,107820.0,107810.0,0.63744]
[1748146739098,0.14014556,107820.0,107810.0,0.48944]
[1748146739285,0.15468641,107820.0,107810.0,0.333]
[1748146739512,0.15468641,107820.0,107810.0,0.63744]
[1748146739672,0.15468641,107820.0,107810.0,0.48944]
[1748146739877,0.15468641,107820.0,107810.0,0.63744]
[1748146749240,0.15468641,107820.0,107810.0,0.63812]
[1748146752525,0.15468641,107820.0,107810.0,0.49008]
[1748146752746,0.15468641,107820.0,107810.0,0.63812]
[1748146753581,0.49076785,107820.0,107810.0,0.333]
[1748146753808,0.49076785,107820.0,107810.0,0.49008]
[1748146754020,1.19746785,107820.0,107810.0,0.63812]
[1748146754429,1.19546785,107820.0,107810.0,0.63812]
[1748146754642,1.20455829,107820.0,107810.0,0.63812]
[1748146754842,1.20755829,107820.0,107810.0,0.63912]
[1748146755034,1.21155829,107820.0,107810.0,0.63912]
[1748146755902,0.87547685,107820.0,107810.0,0.63912]
[1748146756108,1.21155829,107820.0,107810.0,0.63912]
[1748146758852,0.51485829,107820.0,107810.0,0.63912]
[1748146761027,0.52964554,107820.0,107810.0,0.63912]
[1748146761637,0.55742854,107820.0,107810.0,0.63912]
[1748146761981,0.5463381,107820.0,107810.0,0.63912]
[1748146762718,0.21025666,107820.0,107810.0,0.63912]
[1748146762926,0.5463381,107820.0,107810.0,0.63912]
[1748146763171,0.5463381,107820.0,107810.0,0.63916]
[1748146764675,0.21025666,107820.0,107810.0,0.63916]
[1748146764883,0.5463381,107820.0,107810.0,0.63916]
[1748146765297,0.17247366,107820.0,107810.0,0.63916]
[1748146772072,0.5085551,107820.0,107810.0,0.63916]
[1748146773220,0.5085551,107820.0,107810.0,0.334]
[1748146773412,0.5085551,107820.0,107810.0,0.6392]
[1748146780948,0.5085551,107820.0,107810.0,0.49112]
[1748146781162,0.5085551,107820.0,107810.0,0.6392]
[1748146781317,0.5185551,107820.0,107810.0,0.63896]
[1748146783725,0.50376785,107820.0,107810.0,0.63896]
[1748146785524,0.53155185,107820.0,107810.0,0.63896]
[1748146791465,1.27911061,107820.0,107810.0,0.15788]
[1748146791880,1.37656061,107820.0,107810.0,0.15788]
[1748146792312,1.36956061,107820.0,107810.0,0.15688]
[1748146792509,1.37456061,107820.0,107810.0,0.15788]
[1748146792716,1.40219076,107820.0,107810.0,0.15688]
[1748146792919,1.49171227,107820.0,107810.0,0.15688]
[1748146793148,1.49871227,107820.0,107810.0,0.15788]
[1748146793377,1.40919076,107820.0,107810.0,0.15788]
[1748146793576,1.44040537,107820.0,107810.0,0.15788]
[1748146793696,1.43740537,107820.0,107810.0,0.15788]
[1748146794095,0.06954085,107810.0,107800.0,0.14808]
[1748146794296,0.54186785,107810.0,107800.0,0.305]
[1748146794506,0.07124085,107800.0,107790.0,0.33312]
[1748146794734,0.49686785,107800.0,107790.0,0.63827078]
[1748146795127,0.52465685,107800.0,107790.0,0.63827078]
[1748146795331,0.51465685,107800.0,107790.0,0.63827078]
[1748146795527,0.52365685,107800.0,107790.0,0.63827078]
[1748146795707,0.58137185,107800.0,107790.0,0.49019078]
[1748146795949,0.58137185,107800.0,107790.0,0.63827078]
[1748146797043,0.19929041,107800.0,107790.0,0.63927078]
[1748146797329,0.53537185,107800.0,107790.0,0.63927078]
[1748146799003,0.54640309,107800.0,107790.0,0.63927078]
[1748146801850,0.21032165,107800.0,107790.0,0.63927078]
[1748146802055,0.18622165,107800.0,107790.0,0.63927078]
[1748146802792,0.17150665,107800.0,107790.0,0.63927078]
[1748146803249,0.50758809,107800.0,107790.0,0.63927078]
[1748146803451,0.17150665,107800.0,107790.0,0.63927078]
[1748146804069,0.14890665,107800.0,107790.0,0.63927078]
[1748146804479,0.1065768,107800.0,107790.0,0.63927078]
[1748146804628,0.1065768,107800.0,107790.0,0.68227078]
[1748146804836,0.12111765,107800.0,107790.0,0.68227078]
[1748146805033,0.1065768,107800.0,107790.0,0.68227078]
[1748146805586,0.09554556,107800.0,107790.0,0.68227078]
[1748146808809,0.09554556,107800.0,107790.0,0.53419078]
[1748146808997,0.09554556,107800.0,107790.0,0.66337078]
[1748146812271,0.09554556,107800.0,107790.0,0.48988]
[1748146813269,0.09554556,107800.0,107790.0,0.15672]
[1748146813392,0.09554556,107800.0,107790.0,0.3048]
[1748146814394,0.09554556,107800.0,107790.0,0.64088144]
[1748146815500,0.09554556,107800.0,107790.0,3.02657344]
[1748146815736,0.006,107800.0,107790.0,2.87462344]
[1748146816315,0.006,107800.0,107790.0,3.55070488]
[1748146816525,0.002,107800.0,107790.0,3.55070488]
[1748146817053,0.004,107800.0,107790.0,3.21562344]
[1748146817667,0.004,107800.0,107790.0,3.54874344]
[1748146823711,0.004,107800.0,107790.0,3.54870344]
[1748146830158,0.004,107800.0,107790.0,3.40066344]
[1748146830370,0.004,107800.0,107790.0,3.05489644]
[1748146830999,0.13764556,107800.0,107790.0,2.063186]
[1748146831138,0.13764556,107800.0,107790.0,2.39926744]
[1748146832286,0.11574556,107800.0,107790.0,2.39926744]
[1748146832894,0.13764556,107800.0,107790.0,2.39926744]
[1748146833315,0.13764556,107800.0,107790.0,0.97884]
[1748146833520,0.13764556,107800.0,107790.0,1.121006]
[1748146835649,0.11574556,107800.0,107790.0,1.121006]
[1748146835875,0.09354556,107800.0,107790.0,1.131606]
[1748146836693,0.09354556,107800.0,107790.0,1.121006]
[1748146839121,0.09354556,107800.0,107790.0,1.131606]
[1748146840867,0.09354556,107800.0,107790.0,1.121006]
[1748146841735,0.004,107800.0,107790.0,1.121006]
[1748146842150,0.0481,107800.0,107790.0,1.121006]
[1748146846706,0.13764556,107800.0,107790.0,0.816286]
[1748146846918,0.13764556,107800.0,107790.0,1.120886]
[1748146852269,0.11574556,107800.0,107790.0,1.120886]
[1748146852485,0.09354556,107800.0,107790.0,1.120886]
[1748146852694,0.11504556,107800.0,107790.0,1.120886]
[1748146855150,0.11504556,107800.0,107790.0,0.816286]
[1748146855330,0.11504556,107800.0,107790.0,1.120886]
[1748146855714,0.0255,107800.0,107790.0,1.120886]
[1748146856082,0.004,107800.0,107790.0,1.120886]
[1748146858545,0.0473,107800.0,107790.0,1.120886]
[1748146860189,0.13684556,107800.0,107790.0,0.816286]
[1748146860436,0.13684556,107800.0,107790.0,0.97872]
[1748146861678,0.13684556,107800.0,107790.0,0.83068]
[1748146861883,0.13684556,107800.0,107790.0,0.97872]
[1748146862758,0.13684556,107800.0,107790.0,0.83068]
[1748146862971,0.13684556,107800.0,107790.0,0.97872]
[1748146863920,0.13684556,107800.0,107790.0,0.67412]
[1748146864105,0.13684556,107800.0,107790.0,0.97872]
[1748146866899,0.13684556,107800.0,107790.0,0.67412]
[1748146867110,0.13684556,107800.0,107790.0,0.97872]
[1748146870906,0.13684556,107800.0,107790.0,0.67412]
[1748146871040,0.13684556,107800.0,107790.0,0.97864]
[1748146871444,0.48705683,107800.0,107790.0,0.8306]
[1748146871672,0.48705683,107800.0,107790.0,0.4906]
[1748146871849,1.18375683,107800.0,107790.0,0.63864]
[1748146872065,1.22257507,107800.0,107790.0,0.63864]
[1748146872484,1.22257507,107800.0,107790.0,0.4896]
[1748146872891,1.57294549,107800.0,107740.0,0.02526726]
[1748146873208,0.0448,107750.0,107740.0,0.02526726]
[1748146873465,0.13434556,107750.0,107740.0,1.76606735]
[1748146873576,0.13434556,107750.0,107740.0,1.70962435]
[1748146874467,0.13534556,107750.0,107740.0,1.71112692]
[1748146874881,0.13534556,107750.0,107740.0,1.62945392]
[1748146875093,0.13534556,107750.0,107740.0,1.53041392]
[1748146875525,0.13634556,107750.0,107740.0,1.53141392]
[1748146875937,0.13634556,107750.0,107740.0,1.38337392]
[1748146876137,0.13634556,107750.0,107740.0,1.12542692]
[1748146876345,0.13634556,107750.0,107740.0,1.25889392]
[1748146877646,0.13634556,107750.0,107740.0,1.74857392]
[1748146882045,0.13634556,107750.0,107740.0,1.38604846]
[1748146882240,0.13634556,107750.0,107740.0,0.82968]
[1748146882690,0.13634556,107750.0,107740.0,1.926605]
[1748146882896,0.13634556,107750.0,107740.0,1.923144]
[1748146883226,0.13634556,107750.0,107740.0,2.071224]
[1748146884437,0.13634556,107750.0,107740.0,2.08477055]
[1748146886235,0.13634556,107750.0,107740.0,1.93669055]
[1748146886460,0.13634556,107750.0,107740.0,2.08477055]
[1748146893779,0.13634556,107750.0,107740.0,2.08485055]
[1748146894654,0.11434556,107750.0,107740.0,2.08485055]
[1748146895324,0.13604556,107750.0,107740.0,2.08485055]
[1748146900697,0.13604556,107750.0,107740.0,1.19756955]
[1748146900941,0.13604556,107750.0,107740.0,1.17082955]
[1748146901158,0.13604556,107750.0,107740.0,0.852603]
[1748146901376,0.13604556,107750.0,107740.0,0.97796]
[1748146905113,0.13604556,107750.0,107740.0,0.67316]
[1748146905310,0.13604556,107750.0,107740.0,0.97796]
[1748146905518,0.15058641,107750.0,107740.0,0.82984]
[1748146905717,0.15058641,107750.0,107740.0,0.97796]
[1748146906334,0.14958641,107750.0,107740.0,0.97796]
[1748146906539,0.15058641,107750.0,107740.0,0.97796]
[1748146906742,0.14958641,107750.0,107740.0,0.97796]
[1748146907161,0.15058641,107750.0,107740.0,0.97796]
[1748146907530,0.15058641,107750.0,107740.0,0.82984]
[1748146907867,0.15058641,107750.0,107740.0,0.97796]
[1748146911485,1.18295683,107750.0,107740.0,0.48984]
[1748146911707,1.18295683,107750.0,107740.0,0.63796]
[1748146912288,1.21075583,107750.0,107740.0,0.63796]
[1748146912708,1.20975583,107750.0,107740.0,0.48984]
[1748146912929,1.20975583,107750.0,107740.0,0.63796]
[1748146913137,1.21978707,107750.0,107740.0,0.63796]
[1748146913312,1.21978707,107750.0,107740.0,0.48984]
[1748146913563,1.22678707,107750.0,107740.0,0.63796]
[1748146913738,0.0439,107710.0,107680.0,0.37109491]
[1748146913902,0.13344556,107710.0,107690.0,3.998311]
[1748146914100,0.13344556,107710.0,107700.0,1.215014]
[1748146914902,0.13444556,107710.0,107700.0,1.52000486]
[1748146915103,0.13544556,107710.0,107700.0,1.52000486]
[1748146915340,0.13544556,107710.0,107700.0,0.90255086]
[1748146915756,0.13444556,107710.0,107700.0,0.90255086]
[1748146915928,0.13444556,107710.0,107700.0,0.91631984]
[1748146916466,0.13344556,107710.0,107700.0,0.91631984]
[1748146916678,0.13444556,107710.0,107700.0,0.91631984]
[1748146917622,0.13544556,107710.0,107700.0,1.24963984]
[1748146919456,0.09154556,107710.0,107700.0,1.25963984]
[1748146920463,0.09154556,107710.0,107700.0,1.24963984]
[1748146922097,0.09154556,107710.0,107700.0,1.25963984]
[1748146922314,0.13544556,107710.0,107700.0,0.62452384]
[1748146922520,0.13544556,107710.0,107700.0,0.78528584]
[1748146923199,0.13544556,107710.0,107700.0,0.63712584]
[1748146923415,0.13544556,107710.0,107700.0,0.78528584]
[1748146924189,0.13544556,107710.0,107700.0,0.77151686]
[1748146926469,0.13544556,107710.0,107700.0,0.60093386]
[1748146926684,0.13544556,107710.0,107700.0,0.74909386]
[1748146926884,0.13544556,107710.0,107700.0,0.33347086]
[1748146927097,0.13544556,107710.0,107700.0,0.63835086]
[1748146927719,0.13544556,107710.0,107700.0,0.49019086]
[1748146927898,0.13544556,107710.0,107700.0,0.63835086]
[1748146929144,0.13544556,107710.0,107700.0,0.82659886]
[1748146929345,0.13544556,107710.0,107700.0,0.77968986]
[1748146929733,0.13544556,107710.0,107700.0,0.64699566]
[1748146931160,0.13544556,107710.0,107700.0,0.63835086]
[1748146933281,0.13544556,107710.0,107700.0,0.64699692]
[1748146936478,0.13544556,107710.0,107700.0,1.04398892]
[1748146936706,0.13544556,107710.0,107700.0,0.89777092]
[1748146937348,0.13544556,107710.0,107700.0,0.88912486]
[1748146938343,0.13544556,107710.0,107700.0,0.49019086]
[1748146938578,0.13544556,107710.0,107700.0,0.75101586]
[1748146939680,0.13344556,107710.0,107700.0,0.75101586]
[1748146940809,0.13344556,107710.0,107700.0,0.63835086]
[1748146941921,0.13344556,107710.0,107700.0,0.49019086]
[1748146942126,0.13344556,107710.0,107700.0,0.63835086]
[1748146954079,0.13344556,107710.0,107700.0,0.63847086]
[1748146955044,0.47344556,107710.0,107700.0,0.1568]
[1748146955862,0.47344556,107710.0,107700.0,0.767697]
[1748146956193,0.47344556,107710.0,107700.0,0.916175]
[1748146956352,0.47344556,107710.0,107700.0,0.861885]
[1748146956753,0.47339467,107710.0,107700.0,0.861885]
[1748146957547,0.47339467,107710.0,107700.0,1.195285]
[1748146957747,0.47339467,107710.0,107700.0,0.945129]
[1748146965770,0.47339467,107710.0,107700.0,0.921099]
[1748146972061,0.47339467,107710.0,107700.0,0.847479]
[1748146972565,0.47239467,107710.0,107700.0,0.847479]
[1748146972870,0.47439467,107710.0,107700.0,0.847479]
[1748146973459,0.47339467,107710.0,107700.0,0.847479]
[1748146973776,0.47539467,107710.0,107700.0,0.847479]
[1748146975203,0.47539467,107710.0,107700.0,0.542479]
[1748146975411,0.47539467,107710.0,107700.0,0.847399]
[1748146977164,0.47539467,107710.0,107700.0,0.699199]
[1748146977309,0.47539467,107710.0,107700.0,0.847399]
[1748146977513,0.47539467,107710.0,107700.0,0.768276]
[1748146982278,0.47539467,107710.0,107700.0,0.74297]
[1748146983075,0.47539467,107710.0,107700.0,0.59477]
[1748146983295,0.47539467,107710.0,107700.0,0.49012]
[1748146983492,0.47539467,107710.0,107700.0,0.63832]
[1748146984037,0.47539467,107710.0,107700.0,0.75988]
[1748146984442,0.47539467,107710.0,107700.0,0.771367]
[1748146985234,0.47539467,107710.0,107700.0,0.755344]
[1748146989977,0.47539467,107710.0,107700.0,0.607144]
[1748146990175,0.47539467,107710.0,107700.0,0.752775]
[1748146990731,0.47539467,107710.0,107700.0,0.63832]
[1748146996435,0.47539467,107710.0,107700.0,0.958434]
[1748146999500,0.47539467,107710.0,107700.0,0.89779]
[1748147003513,0.47539467,107710.0,107700.0,0.51644651]
[1748147003645,0.47539467,107710.0,107700.0,0.929907]
[1748147004004,0.47539467,107710.0,107700.0,0.756844]
[1748147004661,0.47539467,107710.0,107700.0,0.571644]
[1748147007494,0.47539467,107710.0,107700.0,0.905044]
[1748147009603,0.47539467,107710.0,107700.0,0.891921]
[1748147012782,0.47539467,107710.0,107700.0,0.18159707]
[1748147013194,0.47539467,107710.0,107700.0,0.15664]
[1748147013414,0.47539467,107710.0,107700.0,0.53355402]
[1748147013586,0.47539467,107710.0,107700.0,0.531233]
[1748147014088,0.47539467,107710.0,107700.0,0.679433]
[1748147014792,0.47539467,107710.0,107700.0,0.599711]
[1748147015376,0.47539467,107710.0,107700.0,0.487392]
[1748147016144,0.47539467,107710.0,107700.0,0.457731]
[1748147017607,0.47539467,107710.0,107700.0,0.63824]
[1748147018039,0.47539467,107710.0,107700.0,0.756293]
[1748147018464,0.47539467,107710.0,107700.0,0.63824]
[1748147018640,0.47539467,107710.0,107700.0,0.756293]
[1748147019589,0.47539467,107710.0,107700.0,0.63824]
[1748147020624,0.47539467,107710.0,107700.0,0.751293]
[1748147020837,0.47539467,107710.0,107700.0,0.63824]
[1748147021277,0.47539467,107710.0,107700.0,0.756293]
[1748147021711,0.47539467,107710.0,107700.0,0.63824]
[1748147022158,0.47539467,107710.0,107700.0,0.49004]
[1748147022371,0.47539467,107710.0,107700.0,0.63824]
[1748147022643,0.47539467,107710.0,107700.0,0.49004]
[1748147022851,0.47539467,107710.0,107700.0,0.63824]
[1748147025407,0.47539467,107710.0,107700.0,0.3334]
[1748147025566,0.47539467,107710.0,107700.0,0.63816]
[1748147026850,0.47539467,107710.0,107700.0,0.939313]
[1748147031310,0.13539467,107710.0,107700.0,0.939313]
[1748147038609,0.13539467,107710.0,107700.0,0.781647]
[1748147039196,0.13539467,107710.0,107700.0,0.787501]
[1748147039554,0.13539467,107710.0,107700.0,0.63816]
[1748147042351,0.13539467,107710.0,107700.0,0.48996]
[1748147043802,0.13539467,107710.0,107700.0,0.63816]
[1748147044151,0.13539467,107710.0,107700.0,0.30476]
[1748147047405,0.13539467,107710.0,107700.0,0.439986]
[1748147047608,0.13539467,107710.0,107700.0,0.773386]
[1748147047814,0.13539467,107710.0,107700.0,0.63816]
[1748147050867,0.13539467,107710.0,107700.0,0.949826]
[1748147051496,0.13539467,107710.0,107700.0,0.747754]
[1748147054362,0.13539467,107710.0,107700.0,0.63816]
[1748147056966,0.13539467,107710.0,107700.0,2.195325]
[1748147057212,0.09149467,107710.0,107700.0,4.008365]
[1748147057428,0.09149467,107710.0,107700.0,4.348365]
[1748147058823,0.09149467,107710.0,107700.0,4.347965]
[1748147064287,0.004,107710.0,107700.0,4.347965]
[1748147068416,0.0263,107710.0,107700.0,4.347965]
[1748147068595,0.0478,107710.0,107700.0,4.347965]
[1748147076378,0.0478,107710.0,107700.0,4.199765]
[1748147076594,0.0478,107710.0,107700.0,2.876042]
[1748147077641,0.0478,107710.0,107700.0,2.739052]
[1748147080320,0.13734556,107710.0,107700.0,1.185909]
[1748147080528,0.13734556,107710.0,107700.0,1.089079]
[1748147082467,0.13734556,107710.0,107700.0,0.940919]
[1748147082666,0.13734556,107710.0,107700.0,0.749079]
[1748147083485,0.13734556,107710.0,107700.0,0.3334]
[1748147083665,0.13734556,107710.0,107700.0,0.48988]
[1748147083865,0.13734556,107710.0,107700.0,0.63804]
[1748147090158,0.13584556,107710.0,107700.0,0.48976]
[1748147090371,0.13584556,107710.0,107700.0,0.1564]
[1748147091414,0.13584556,107710.0,107700.0,0.30456]
[1748147097548,0.13584556,107710.0,107700.0,0.63792]
[1748147098817,0.13864556,107710.0,107700.0,0.1564]
[1748147100051,0.13864556,107710.0,107700.0,0.30456]
[1748147104609,0.13864556,107710.0,107700.0,1.130321]
[1748147104762,0.47864556,107710.0,107700.0,3.523531]
[1748147104938,0.47864556,107710.0,107700.0,3.181136]
[1748147107692,0.47864556,107710.0,107700.0,3.514536]
[1748147109319,0.47864556,107710.0,107700.0,2.804346]
[1748147109524,0.47864556,107710.0,107700.0,2.570053]
[1748147112499,0.47864556,107710.0,107700.0,2.265493]
[1748147112715,0.47864556,107710.0,107700.0,2.570053]
[1748147125004,0.3891,107710.0,107700.0,2.570053]
[1748147133748,0.3891,107710.0,107700.0,2.265493]
[1748147133894,0.3891,107710.0,107700.0,2.569933]
[1748147143523,0.3891,107710.0,107700.0,2.37409428]
[1748147159526,0.3891,107710.0,107700.0,2.22593428]
[1748147159731,0.3891,107710.0,107700.0,2.37409428]
[1748147161720,0.0491,107710.0,107700.0,2.37409428]
[1748147171487,0.0491,107710.0,107700.0,2.06965428]
[1748147171796,0.13864556,107710.0,107700.0,1.820128]
[1748147181234,0.13864556,107710.0,107700.0,1.820008]
[1748147190399,0.13864556,107710.0,107700.0,1.799812]
[1748147193664,0.13864556,107710.0,107700.0,1.766886]
[1748147197050,0.13864556,107710.0,107700.0,1.08679068]
[1748147197382,0.13864556,107710.0,107700.0,0.80577]
[1748147197571,0.13864556,107710.0,107700.0,1.13913]
[1748147198272,0.13864556,107710.0,107700.0,1.28729]
[1748147201361,0.13864556,107710.0,107700.0,1.04028851]
[1748147201497,0.13864556,107710.0,107700.0,1.246742]
[1748147201705,0.13864556,107710.0,107700.0,1.197536]
[1748147220139,0.0491,107710.0,107700.0,1.197536]
[1748147228435,0.0471,107710.0,107700.0,1.197536]
[1748147228728,0.0461,107710.0,107700.0,1.197536]
[1748147229069,0.0471,107710.0,107700.0,1.197536]
[1748147240694,0.0471,107710.0,107700.0,0.51543106]
[1748147241963,0.0471,107710.0,107700.0,0.66359106]
[1748147242297,0.0471,107710.0,107700.0,0.51543106]
[1748147242503,0.0471,107710.0,107700.0,0.66359106]
[1748147247578,0.0471,107710.0,107700.0,0.99691106]
[1748147262058,0.08495814,107740.0,107700.0,0.99691106]
[1748147262206,0.08954556,107730.0,107710.0,2.53028649]
[1748147262419,0.08495814,107740.0,107720.0,2.676126]
[1748147262623,0.1745037,107740.0,107730.0,2.167609]
[1748147262857,0.1745037,107740.0,107730.0,2.13998]
[1748147263014,0.1745037,107740.0,107730.0,1.792267]
[1748147263217,0.16547246,107740.0,107730.0,1.792267]
[1748147263706,0.16447246,107740.0,107730.0,1.771515]
[1748147264590,0.16347246,107740.0,107730.0,1.771515]
[1748147264837,0.16547246,107740.0,107730.0,1.772515]
[1748147265036,0.21027246,107740.0,107730.0,1.773515]
[1748147266446,0.21027246,107740.0,107730.0,1.74686]
[1748147266975,0.21027246,107740.0,107730.0,1.488601]
[1748147268397,0.21027246,107740.0,107730.0,1.41455]
[1748147269444,0.13634556,107740.0,107730.0,1.41455]
[1748147271433,0.13634556,107740.0,107730.0,1.345757]
[1748147273181,0.13634556,107740.0,107730.0,1.679037]
[1748147274091,0.13634556,107740.0,107730.0,1.528252]
[1748147274388,0.13634556,107740.0,107730.0,1.507294]
[1748147276211,0.13634556,107740.0,107730.0,0.99970228]
[1748147277067,0.13634556,107740.0,107730.0,1.109334]
[1748147277631,0.13634556,107740.0,107730.0,1.442614]
[1748147278438,0.13579644,107740.0,107730.0,1.442614]
[1748147279500,0.13579644,107740.0,107730.0,1.782614]
[1748147280151,0.13579644,107740.0,107730.0,1.58333764]
[1748147280351,0.13579644,107740.0,107730.0,1.735002]
[1748147281474,0.13579644,107740.0,107730.0,1.372121]
[1748147303347,0.0468,107740.0,107730.0,1.372121]
[1748147305809,0.005,107740.0,107730.0,1.372121]
[1748147311066,0.005,107740.0,107730.0,1.391621]
[1748147311267,0.005,107740.0,107730.0,1.409221]
[1748147311471,0.002,107740.0,107730.0,1.409221]
[1748147311672,0.0441,107750.0,107730.0,1.069221]
[1748147311876,0.002,107740.0,107730.0,1.01614]
[1748147312075,0.002,107740.0,107730.0,3.172717]
[1748147312076,0.003,107740.0,107730.0,3.172717]
[1748147312283,0.001,107740.0,107730.0,3.170717]
[1748147312479,0.001,107740.0,107730.0,3.153117]
[1748147312723,0.002,107740.0,107730.0,3.154117]
[1748147312932,0.003,107740.0,107730.0,3.172717]
[1748147315344,0.0739269,107760.0,107730.0,2.92226256]
[1748147315345,0.1151269,107760.0,107730.0,2.92226256]
[1748147315530,0.1151269,107760.0,107740.0,2.17839685]
[1748147315691,0.1151269,107760.0,107750.0,2.304697]
[1748147316580,0.0412,107770.0,107750.0,2.304697]
[1748147316792,0.00050276,107760.0,107750.0,0.18522]
[1748147316980,0.00350276,107760.0,107750.0,2.498277]
[1748147317402,0.00450276,107760.0,107750.0,2.498277]
[1748147318057,0.00050276,107760.0,107750.0,2.5108668]
[1748147318574,0.00150276,107760.0,107750.0,2.5108668]
[1748147318957,0.00150276,107760.0,107750.0,2.8508668]
[1748147321736,0.00150276,107760.0,107750.0,2.8332668]
[1748147322376,0.00150276,107760.0,107750.0,2.8137668]
[1748147323289,0.00150276,107760.0,107750.0,2.4467278]
[1748147324427,0.00150276,107760.0,107750.0,2.5948078]
[1748147326300,0.04130276,107760.0,107750.0,2.2912878]
[1748147326511,0.04130276,107760.0,107750.0,2.0667688]
[1748147326719,0.04130276,107760.0,107750.0,2.3702888]
[1748147334543,0.04130276,107760.0,107750.0,2.2222088]
[1748147334703,0.04130276,107760.0,107750.0,2.3702888]
[1748147336670,0.04130276,107760.0,107750.0,2.7034488]
[1748147336891,0.13084832,107760.0,107750.0,0.5060048]
[1748147337096,0.13084832,107760.0,107750.0,0.48848]
[1748147337515,0.14538917,107760.0,107750.0,0.63656]
[1748147337720,0.21931607,107760.0,107750.0,0.48848]
[1748147337959,0.21931607,107760.0,107750.0,0.63656]
[1748147338679,0.22031607,107760.0,107750.0,0.63656]
[1748147338881,0.21831607,107760.0,107750.0,0.63656]
[1748147339083,0.22231607,107760.0,107750.0,0.63856]
[1748147339714,0.22131607,107760.0,107750.0,0.63756]
[1748147340093,0.22431607,107760.0,107750.0,0.63856]
[1748147340948,0.15038917,107760.0,107750.0,0.33516]
[1748147341157,0.15038917,107760.0,107750.0,0.6386]
[1748147360171,0.15038917,107760.0,107750.0,0.63864]
[1748147360406,0.48640626,107760.0,107750.0,0.63864]
[1748147364898,0.15038917,107760.0,107750.0,0.63864]
[1748147365107,0.48640626,107760.0,107750.0,0.63864]
[1748147365934,0.15038917,107760.0,107750.0,0.63864]
[1748147366147,0.48640626,107760.0,107750.0,0.63864]
[1748147367456,0.49743443,107760.0,107750.0,0.63864]
[1748147368677,0.16141734,107760.0,107750.0,0.63864]
[1748147369934,0.15038917,107760.0,107750.0,0.63864]
[1748147384321,0.15038917,107760.0,107750.0,0.49052]
[1748147384569,0.15038917,107760.0,107750.0,0.63864]
[1748147385790,0.13078917,107760.0,107750.0,0.15528]
[1748147386319,0.15118917,107760.0,107750.0,0.15528]
[1748147386899,0.15118917,107760.0,107750.0,0.3034]
[1748147387468,0.15118917,107760.0,107750.0,0.63664]
[1748147403110,0.13664832,107760.0,107750.0,0.63664]
[1748147403314,0.13664832,107760.0,107750.0,1.300015]
[1748147403540,0.13664832,107760.0,107750.0,1.274705]
[1748147403953,0.13664832,107760.0,107750.0,1.045385]
[1748147404349,0.13664832,107760.0,107750.0,0.968166]
[1748147404482,0.13664832,107760.0,107750.0,0.940291]
[1748147405341,0.13664832,107760.0,107750.0,0.884872]
[1748147405844,0.13664832,107760.0,107750.0,0.581472]
[1748147406055,0.13664832,107760.0,107750.0,0.884792]
[1748147408433,0.09604832,107760.0,107750.0,0.884792]
[1748147411407,0.11544832,107760.0,107750.0,0.884792]
[1748147412340,0.13594832,107760.0,107750.0,0.884792]
[1748147417241,0.13594832,107760.0,107750.0,0.736672]
[1748147417413,0.13594832,107760.0,107750.0,0.884792]
[1748147422413,0.13594832,107760.0,107750.0,0.736672]
[1748147422634,0.13594832,107760.0,107750.0,0.884792]
[1748147428054,0.47196541,107760.0,107750.0,0.736672]
[1748147428267,0.13594832,107760.0,107750.0,0.772232]
[1748147438836,0.13594832,107760.0,107750.0,0.15512]
[1748147439457,0.13594832,107760.0,107750.0,0.271088]
[1748147439809,0.13594832,107760.0,107750.0,0.419208]
[1748147440011,0.13594832,107760.0,107750.0,0.30324]
[1748147440214,0.13594832,107760.0,107750.0,0.419208]
[1748147440418,0.13594832,107760.0,107750.0,0.30324]
[1748147447512,0.13594832,107760.0,107750.0,0.63648]
[1748147453756,0.13594832,107760.0,107750.0,0.48836]
[1748147454061,0.13594832,107760.0,107750.0,0.63648]
[1748147454575,0.13594832,107760.0,107750.0,0.33324]
[1748147454779,0.13594832,107760.0,107750.0,0.63648]
[1748147456582,0.48650626,107760.0,107750.0,0.63648]
[1748147456779,0.15048917,107760.0,107750.0,0.63648]
[1748147459033,0.3778,107750.0,107710.0,0.01110794]
[1748147459180,0.12734556,107740.0,107720.0,1.95946645]
[1748147459376,0.12734556,107740.0,107730.0,1.802026]
[1748147460185,0.12734556,107740.0,107730.0,1.61882]
[1748147460419,0.12734556,107740.0,107730.0,1.76694]
[1748147460633,0.12834556,107740.0,107730.0,1.76694]
[1748147461307,0.12734556,107740.0,107730.0,1.76694]
[1748147462771,0.12834556,107740.0,107730.0,1.76794]
[1748147463001,0.09154556,107740.0,107730.0,1.76894]
[1748147464898,0.002,107740.0,107730.0,1.76894]
[1748147466466,0.002,107740.0,107730.0,1.92402]
[1748147466679,0.002,107740.0,107730.0,1.62082]
[1748147466879,0.00050276,107760.0,107730.0,2.01356556]
[1748147467110,0.00050276,107760.0,107740.0,1.802026]
[1748147467315,0.00050276,107760.0,107750.0,0.14812]
[1748147467493,0.00050276,107760.0,107750.0,2.283386]
[1748147468291,0.00150276,107760.0,107750.0,2.283386]
[1748147468703,0.00050276,107760.0,107750.0,2.283386]
[1748147469327,0.00350276,107760.0,107750.0,2.283386]